[Event "Bangabandhu Premier Div League 2022"]
[Site "Dhaka"]
[Date "2022.12.04"]
[Round "5.5"]
[White "Mohammad, Shameem"]
[Black "Anata, Choudhury"]
[Result "1/2-1/2"]
[ECO "E02"]
[WhiteElo "1892"]
[BlackElo "2176"]
[Annotator "TA"]
[PlyCount "99"]
[EventDate "2022.12.01"]
[EventCountry "BAN"]
[SourceTitle "playchess.com"]
[Source "ChessBase"]
[SourceQuality "1"]
[TimeControl "40/5400+30:1800+30"]

{[%evp 23,99,0,0,-13,-8,-23,-13,-62,-57,-64,-75,-94,-111,-99,-102,-242,-14,-15,0,0,0,-149,-145,-165,-74,-212,-149,-154,-8,0,166,152,191,212,208,182,214,207,202,192,258,258,247,253,257,255,250,245,243,232,233,112,259,249,241,0,0,0,0,0,0,0,0,0,0,0,85,85,85,85,85,85,85,85,85,75,75,75]} 1. d4 {[%emt 0:22:29]} Nf6 {[%emt 0:01:03]} 2. c4 {[%emt 0:00:10]} e6 {[%emt 0:00:28]} 3. Nf3 {[%emt 0:01:05]} d5 {[%emt 0:00:10]} 4. g3 {[%emt 0:00:07]} dxc4 {[%emt 0:00:12]} 5. Qa4+ {[%emt 0:00:38]} Nbd7 {[%emt 1:31:07]} 6. Bg2 {[%emt 0:00:49]} a6 {[%emt 0:00:00]} 7. Nc3 {[%emt 0:02:45]} Rb8 {[%emt 0:00:00]} 8. Qxc4 {[%emt 0:00:17]} b5 {[%emt 0:00:00]} 9. Qd3 {[%emt 0:00:18]} Bb7 {[%emt 0:00:00]} 10. O-O {[%emt 1:06:52]} c5 {[%emt 0:00:00]} 11. Bf4 {[%emt 0:00:00]} Rc8 {[%emt 0:03:00]} 12. dxc5 {[%emt 0:00:00]} Bxc5 {[%emt 0:00:00]} 13. Rfd1 {[%emt 0:01:30] E02: Open Catalan: 5 Qa4+.} Qb6 {[%emt 0:01:00]} 14. e3 {[%emt 0:00:00]} O-O {[%emt 0:00:00] [#]} 15. Bd6 $146 {[%emt 0:00:00]} (15. a4 $11 {is more appropriate.}) ({Predecessor:} 15. Rac1 Rfd8 16. Bd6 Bxf3 17. Bxf3 Ne5 18. Bxc5 Nxf3+ 19. Kh1 Qc7 20. Qe2 Ng5 21. b4 Qb7+ 22. e4 Rxd1+ 23. Nxd1 Nfxe4 24. f3 Nxc5 25. Rxc5 Rxc5 26. bxc5 Nxf3 27. Qg2 Qe4 {0-1 (27) Isik,A (2211)-Koksal,E (2390) Konya 2017}) 15... Rfd8 $15 {[%emt 0:00:00]} 16. Bxc5 {[%emt 0:00:00]} Nxc5 {[%emt 0:00:00]} 17. Qf1 {[%emt 0:00:00]} b4 {[%emt 0:00:00]} 18. Ne2 {[%emt 0:00:00]} Nd3 {[%emt 0:02:30]} 19. Rd2 {[%emt 0:03:00] [#]} (19. Rxd3 $17 {keeps fighting.} Rxd3 20. Ned4) 19... Bxf3 $2 {[%emt 0:00:00]} ({Not} 19... Ne4 20. Rxd3 Rxd3 21. Ned4 $11) (19... Nxf2 $1 $19 {[%mdl 512]} 20. Rxd8+ (20. Qxf2 $2 {perishes.} Ng4 $19) 20... Rxd8 21. Kxf2 (21. Qxf2 $2 Ne4 $19) 21... Ng4+ 22. Kg1 Qxe3+ 23. Kh1 Nf2+ 24. Kg1 Ne4+ 25. Kh1 e5) 20. Bxf3 $11 {[%emt 0:00:00]} Ne5 {[%emt 0:00:00] Pair of Knights!} 21. Rxd8+ {[%emt 0:00:00]} Rxd8 {[%emt 0:01:30]} 22. Qg2 {[%emt 0:00:00]} (22. Bg2 $11 {keeps the balance.}) 22... Rd2 $17 {[%emt 0:00:30]} 23. Rb1 {[%emt 0:02:00]} g5 {[%emt 0:00:30]} (23... b3 $19 24. a4 Nd3) 24. h3 {[%emt 0:00:30]} (24. Nd4 $17) 24... Qb5 {[%emt 0:00:00]} 25. Nd4 {[%emt 0:00:00]} Qc4 {[%emt 0:01:00]} (25... Qd3 $17 26. Qf1 g4 27. Qxd3 Nxd3) 26. Nb3 $36 {[%emt 0:00:00][%mdl 2048] Black is under pressure.} Rc2 {[%emt 0:00:00]} (26... Rd7 $11) 27. Bd1 $18 {[%emt 0:00:00]} Nd3 {[%emt 0:00:00]} 28. Bxc2 {[%emt 0:00:00]} Qxc2 {[%emt 0:00:00]} 29. Rf1 {[%emt 0:00:00]} Qxb2 {[%emt 0:00:00]} 30. Qa8+ {[%emt 0:00:00]} Kg7 {[%emt 0:00:00]} 31. Qxa6 {[%emt 0:00:00]} Ne5 {[%emt 0:00:00]} (31... Qc3 $142 32. Nd4 Nc5) 32. Nd4 {[%emt 0:04:00]} h6 {[%emt 0:00:00]} 33. Qe2 {[%emt 0:00:30]} Qa3 {[%emt 0:00:00]} 34. Qc2 {[%emt 0:00:00]} Nd5 {[%emt 0:00:00]} 35. Qb3 {[%emt 0:01:00]} Qa8 {[%emt 0:00:00]} 36. Qb2 {[%emt 0:00:30]} Kg8 {[%emt 0:05:30]} 37. e4 {[%emt 0:00:00]} (37. Ra1 $18 {is more deadly.}) 37... Nf6 {[%emt 0:00:00]} (37... Nc3 $16 38. Qxb4 Nxa2) 38. Qxb4 {[%emt 0:00:00]} Qxe4 {[%emt 0:01:00] [#] White must now prevent ...Nf3+.} 39. Qc3 {[%emt 0:01:30] Inhibits Nf3+.} ({White has to play} 39. Qb8+ $1 $18 Kg7 40. Rd1) 39... Qxd4 $1 $11 {[%emt 0:00:00][%mdl 64] Remove Defender, Decoy} 40. Qxd4 {[%emt 0:00:00]} Nf3+ {[%emt 0:00:00]} 41. Kg2 {[%emt 0:29:13]} Nxd4 {[%emt 0:28:01]} 42. a4 {[%emt 0:01:28]} Nb3 {[%emt 0:01:08] Prevents a5.} 43. Rb1 {[%emt 0:00:00]} Nc5 {[%emt 0:03:21]} 44. a5 {[%emt 0:00:00]} Nfd7 {[%emt 0:00:00] [#] Inhibits Rb6.} (44... Nd5 $11) 45. Rd1 $1 $16 {[%emt 0:02:19] White is better.} Ne5 {[%emt 0:00:00]} 46. Rd6 Kf8 {[%emt 0:01:30]} 47. a6 {[%emt 0:01:00]} Nxa6 {[%emt 0:00:00]} 48. Rxa6 {[%emt 0:00:00]} Ke7 {[%emt 0:00:00]} 49. f4 {[%emt 0:00:00]} gxf4 {[%emt 0:00:00]} 50. gxf4 {[%emt 0:00:00] Black defended with fortune.   Weighted Error Value: White=0.31/Black=0.39} 1/2-1/2

[Event "Bangabandhu Premier Div League 2022"]
[Site "Dhaka"]
[Date "2022.12.04"]
[Round "5.6"]
[White "Koustav Chatterjee"]
[Black "Habibur Rahman, Sohel"]
[Result "1-0"]
[ECO "B31"]
[WhiteElo "2496"]
[BlackElo "1871"]
[Annotator "TA"]
[PlyCount "63"]
[EventDate "2022.12.01"]
[EventCountry "BAN"]
[SourceTitle "playchess.com"]
[Source "ChessBase"]
[SourceQuality "1"]
[TimeControl "40/5400+30:1800+30"]

{[%evp 12,63,41,33,44,16,0,10,77,29,38,39,43,45,123,125,131,95,95,114,71,86,123,24,38,-4,-16,-4,-8,-55,-49,-138,-6,-10,14,14,8,18,8,11,10,0,143,170,155,172,170,169,489,484,854,854,29998,29999]} 1. e4 {[%emt 0:05:38]} c5 {[%emt 0:00:23]} 2. Nf3 {[%emt 0:00:29]} Nc6 {[%emt 0:00:56]} 3. Bb5 {[%emt 0:00:12][%cal Bf1b5,Bb5a4,Ba4b3][%mdl 32]} g6 {[%emt 0:01:25]} 4. O-O {[%emt 0:00:08]} Bg7 {[%emt 0:00:46]} 5. c3 {[%emt 0:00:04][%cal Bc2c3,Bc3d4,Bd4e5][%mdl 32]} d6 {[%emt 0:02:13]} 6. d4 {[%emt 1:26:59]} cxd4 {[%emt 0:01:41]} 7. cxd4 {[%emt 0:00:00] And now d5 would win.} a6 {[%emt 0:03:23] B31: Sicilian: 2...Nc6 3 Bb5 g6.} 8. Ba4 {[%emt 0:01:00] Strongly threatening d5.} b5 {[%emt 1:23:43] Inhibits d5.} 9. Bb3 {[%emt 0:00:00]} Bb7 {[%emt 0:00:00] [#]} (9... Nf6 $11 {remains equal.}) 10. Nc3 {[%emt 0:01:00]} (10. Bxf7+ $1 $16 Kxf7 11. d5) 10... Nf6 $11 {[%emt 0:00:00]} 11. e5 {[%emt 0:00:30]} dxe5 {[%emt 0:00:00]} 12. dxe5 {[%emt 0:00:30] [#]} Ng4 $146 {[%emt 0:00:00] [#]} (12... Qxd1 $1 $14 13. Rxd1 Ng4) ({Predecessor:} 12... Qxd1 13. Rxd1 Ng4 14. e6 f6 15. Rd7 Bc8 16. Rc7 Nce5 17. Nxe5 Nxe5 18. Nd5 O-O 19. Nxe7+ {1-0 (65) Hartewig,A (1202)-Schlemmer,E (1101) Sebnitz 2009}) 13. Bxf7+ $1 $16 {[%emt 0:00:30][%mdl 512]} Kxf7 {[%emt 0:00:00]} 14. Ng5+ {[%emt 0:00:00][%cal Bf3g5,Bg5h3,Bh3g5,Bg5e6][%mdl 96] Discovered Attack} Ke8 {[%emt 0:00:00]} 15. Qxg4 {[%emt 0:01:00] Ne6 is the strong threat.} Nxe5 {[%emt 0:00:00]} 16. Qg3 {[%emt 0:00:30] Black must now prevent Ne6.} Qd3 {[%emt 0:04:00]} 17. Be3 {[%emt 0:00:30]} (17. Ne6 $16 Bf6 18. Nc7+ Kf7 19. Nxa8 Bxa8 20. Be3) 17... Qf5 $1 $11 {[%emt 0:00:30]} 18. Rad1 {[%emt 0:00:30] aiming for Rfe1.} (18. Ne2 $5 {[%cal Re2d4]} Bf6 19. Rad1 $14) 18... h6 {[%emt 0:00:00]} 19. Nh3 {[%emt 0:00:30]} (19. f4 $2 Nc4 20. Bd4 Bxd4+ 21. Rxd4 hxg5 $19) 19... Kf7 {[%emt 0:01:00]} 20. Bd4 {[%emt 0:00:30]} (20. Ne2 $11) 20... Rad8 $15 {[%emt 0:00:30][%cal Oe5f3] Hoping for ...Nf3+!} 21. Ne2 {[%emt 0:00:00] [#]} ({White should try} 21. Kh1 $1 $15) 21... Rd6 {[%emt 0:00:30]} (21... Bxg2 $1 $17 {[%mdl 512]} 22. Kxg2 Qe4+ 23. f3 Qxe2+ 24. Qf2 Qxf2+ 25. Nxf2 g5 26. Bxe5 Bxe5) 22. f4 $1 $11 {[%emt 0:00:00]} (22. Nhf4 Rhd8 23. Qb3+ Nc4 24. Bxg7 Kxg7 25. Qc3+ (25. Rxd6 Rxd6 26. Qc3+ Kg8 $17) 25... Kg8 $17) 22... Nc4 {[%emt 0:00:00][%cal Oh8d8] [#] Threatens to win with ...Rhd8!} (22... Nf3+ $5 23. gxf3 Rhd8 $11) 23. Ng5+ $1 {[%emt 0:01:30]} Kg8 $1 $132 {[%emt 0:00:00][%mdl 2048] Black is not keeping still} ({Don't play} 23... hxg5 24. fxg5 Be4 25. b3 $16 (25. Rxf5+ gxf5 26. b3 Be5 $18) (25. Rxf5+ gxf5 26. b3 Nb6 $18)) 24. Bxg7 {[%emt 0:00:00]} Kxg7 {[%emt 0:00:00]} 25. Rxd6 {[%emt 0:01:00] The board is on fire.} Nxd6 {[%emt 0:00:00]} ({Don't take} 25... exd6 26. Nd4 Qf6 27. Nge6+ Kh7 28. f5 $16) 26. Nd4 {[%emt 0:00:30]} Qd5 {[%emt 0:00:00]} (26... Qf6 $11 27. Nge6+ Kh7) 27. Nge6+ $16 {[%emt 0:00:30] Pair of Knights!} Kh7 {[%emt 0:03:00] [#]} 28. f5 $1 {[%emt 0:00:00][%csl Gf5][%cal Rg3g6] White is more active.} g5 {[%emt 0:00:00]} 29. h4 {[%emt 0:01:00]} Nf7 {[%emt 0:00:00]} (29... Ne4 {is a better chance.} 30. Qc7 Re8) 30. f6 $18 {[%emt 0:00:00]} ({Much less strong is} 30. hxg5 Nxg5 31. Nxg5+ hxg5 $18) 30... exf6 {[%emt 0:00:14]} (30... Re8 $142 31. hxg5 Qxg2+ 32. Qxg2 Bxg2) 31. Rxf6 {[%emt 0:01:00] Threatening mate with hxg5.} Kg8 {[%emt 0:01:44]} 32. Rg6+ {[%emt 0:00:00] Weighted Error Value: White=0.18 (very precise) /Black=0.61} 1-0

[Event "Bangabandhu Premier Div League 2022"]
[Site "Dhaka"]
[Date "2022.12.04"]
[Round "5.6"]
[White "Mohammad Fahad, Rahman"]
[Black "Pantsulaia, Levan"]
[Result "0-1"]
[ECO "A40"]
[WhiteElo "2380"]
[BlackElo "2597"]
[Annotator "TA"]
[PlyCount "68"]
[EventDate "2022.11.30"]
[EventType "team-tourn"]
[EventCountry "BAN"]
[SourceTitle "playchess.com"]
[Source "ChessBase"]
[SourceQuality "1"]
[TimeControl "40/5400+30:1800+30"]

{[%evp 9,68,67,61,30,55,35,39,50,70,66,67,64,84,75,65,71,83,0,0,-163,-170,-183,-168,-278,-278,-291,-291,-535,-541,-522,-502,-570,-570,-781,-772,-897,-856,-827,-678,-1151,-1053,-1633,-1634,-1839,-1827,-1804,-1738,-7453,-2522,-5798,-5569,-6403,-6237,-2946,-1526,-1371,-1368,-6245,-5352,-2265,-1715]} 1. d4 {[%emt 0:00:22]} c5 {[%emt 0:00:14]} 2. d5 {[%emt 0:00:06]} g6 {[%emt 0:00:04]} 3. c4 {[%emt 0:00:25]} Bg7 {[%emt 0:00:05]} 4. e4 {[%emt 0:01:20]} d6 {[%emt 0:00:06]} 5. Nf3 {[%emt 0:00:56]} e6 {[%emt 0:00:20][%cal Be7e6,Be6e5,Be5f4][%mdl 32]} 6. h3 {[%emt 0:01:03] A40: Unusual replies to 1 d4.} Ne7 {[%emt 0:01:03]} 7. Bd3 {[%emt 0:02:22] [#]} Nd7 $146 {[%emt 0:04:05]} ({Predecessor:} 7... h6 8. Nc3 a6 9. a4 Nd7 10. Bf4 e5 11. Bd2 f5 12. Qc2 Nf6 13. Nh4 f4 {1-0 (48) Vitiugov,N (2738)-Riazantsev,A (2684) Wroclaw 2014}) 8. O-O {[%emt 0:01:25] White is slightly better.} h6 {[%emt 0:01:32]} 9. Nc3 {[%emt 0:03:05]} Bxc3 {[%emt 0:01:17]} 10. bxc3 {[%emt 0:00:02]} e5 $1 {[%emt 0:00:08]} 11. Ne1 {[%emt 0:08:35]} g5 {[%emt 0:01:01] Inhibits f4.} 12. g3 {[%emt 0:00:58]} Ng6 {[%emt 0:00:49]} 13. Ng2 {[%emt 0:01:09]} (13. Nc2 $16) 13... Nf6 $11 {[%emt 0:01:52]} 14. g4 $2 {[%emt 0:05:19] [#] Black converts the advantage convincingly.} (14. Kh2 $11) 14... Nf4 $1 $19 {[%emt 0:05:38]} 15. Bxf4 {[%emt 0:01:25]} exf4 {[%emt 0:01:35]} 16. Qa4+ {[%emt 0:21:51]} (16. e5 $142 dxe5 17. Re1) 16... Kf8 {[%emt 0:01:47]} 17. f3 {[%emt 0:04:58]} h5 {[%emt 0:06:58][%cal Rh5g4]} 18. Be2 $2 {[%emt 0:02:06]} (18. Qc2 {is a better defense.} Nd7 19. Kf2) 18... hxg4 {[%emt 0:06:11] Black is clearly winning.} 19. hxg4 {[%emt 0:00:02]} Rh3 {[%emt 0:03:45] Hoping for ...Kg7.} 20. Rae1 {[%emt 0:11:47]} Kg7 {[%emt 0:02:09]} 21. e5 {[%emt 0:05:05]} dxe5 {[%emt 0:02:15]} 22. Bd1 {[%emt 0:06:05]} Qd6 {[%emt 0:05:25][%cal Oc8g4]} 23. Qc2 {[%emt 0:01:09]} Bd7 {[%emt 0:00:37][%cal Oe5e4] [#] Strongly threatening ...e4!} 24. Qb1 {[%emt 0:09:07]} Rah8 {[%emt 0:05:00]} 25. Kf2 {[%emt 0:01:14]} e4 {[%emt 0:01:14]} 26. Rxe4 {[%emt 0:00:08]} Nxe4+ {[%emt 0:01:33]} 27. Qxe4 {[%emt 0:00:02]} Re8 {[%emt 0:00:36]} 28. Qc2 {[%emt 0:00:47]} Rh2 {[%emt 0:00:38]} (28... Qh6 $142 29. Rg1 Rh2) 29. Rg1 {[%emt 0:04:18]} Qh6 {[%emt 0:00:51]} 30. Kf1 {[%emt 0:00:08]} Qh3 {[%emt 0:00:44]} 31. Qf2 {[%emt 0:00:32]} b6 {[%emt 0:02:03] ( -> ...f5)} 32. Be2 {[%emt 0:00:15]} f5 {[%emt 0:01:25][%cal Bf7f5,Bf5g4,Bg4f3][%mdl 32]} 33. Ke1 {[%emt 0:02:26]} fxg4 {[%emt 0:00:12]} 34. Kd2 {[%emt 0:00:08]} gxf3 {[%emt 0:01:48] Weighted Error Value: White=1.39/Black=0.55} 0-1

[Event "Bangabandhu Premier Div League 2022"]
[Site "Dhaka"]
[Date "2022.12.04"]
[Round "5.7"]
[White "Rakhmanov, Aleksandr"]
[Black "Narayanan.S.L"]
[Result "1-0"]
[ECO "E50"]
[WhiteElo "2630"]
[BlackElo "2673"]
[Annotator "TA"]
[PlyCount "85"]
[EventDate "2022.11.30"]
[EventType "team-tourn"]
[EventCountry "BAN"]
[SourceTitle "playchess.com"]
[Source "ChessBase"]
[SourceQuality "1"]
[TimeControl "40/5400+30:1800+30"]

{[%evp 9,85,4,6,6,19,0,14,-3,-15,-12,9,10,2,4,18,-5,-8,-13,6,9,10,17,3,0,10,0,0,7,39,47,29,30,112,95,97,104,102,48,142,146,136,129,196,195,193,188,187,165,216,218,400,404,362,369,359,242,354,304,551,550,552,544,618,615,873,878,870,864,910,910,908,890,850,844,815,771,1678,1427]} 1. d4 {[%emt 0:00:03]} Nf6 {[%emt 0:00:56]} 2. c4 {[%emt 0:00:23]} e6 {[%emt 0:00:05][%cal Be7e6,Be6e5][%mdl 32]} 3. Nc3 {[%emt 0:00:24]} Bb4 {[%emt 0:00:08]} 4. e3 {[%emt 0:00:10]} O-O {[%emt 0:00:07]} 5. Nf3 {[%emt 0:00:15]} Bxc3+ {[%emt 0:00:15]} 6. bxc3 {[%emt 0:00:06] E50: Nimzo-Indian: Rubinstein: 4...0-0 5 Nf3.} d6 {[%emt 0:00:04]} 7. Bd3 {[%emt 0:01:05]} e5 {[%emt 0:00:19] Hoping for ...e4. outshines the older 7...Nbd7.} 8. e4 {[%emt 0:01:48] The position is equal.} Re8 {[%emt 0:00:27]} 9. O-O {[%emt 0:01:29]} Bg4 {[%emt 0:00:08]} 10. h3 {[%emt 0:01:44]} Bh5 {[%emt 0:00:06]} 11. Re1 {[%emt 0:00:40]} Nbd7 {[%emt 0:01:34]} 12. g4 {[%emt 0:03:51]} Bg6 {[%emt 0:00:09]} 13. Bg5 {[%emt 0:03:30][%cal Bc1g5,Bg5h4,Bh4g3][%mdl 32] [#]} h6 $146 {[%emt 0:10:42]} ({Predecessor:} 13... Nf8 14. d5 h6 15. Bh4 Bh7 16. Qc1 Ng6 17. Bg3 Nd7 18. h4 Nc5 19. Bc2 Qc8 {0-1 (53) Pechac,J (2598)-Krzyzanowski,M (2535) Prague 2022}) 14. Bh4 {[%emt 0:02:56]} Qc8 {[%emt 0:00:07]} 15. Qc2 {[%emt 0:09:57]} c6 {[%emt 0:14:55]} 16. Nd2 {[%emt 0:12:28]} Nh7 {[%emt 0:28:50][%cal Bf6h7,Bh7g5,Bg5e6][%mdl 32]} 17. Bg3 {[%emt 0:05:10]} Ng5 {[%emt 0:00:40]} 18. Kg2 {[%emt 0:00:37]} Ne6 {[%emt 0:00:54]} 19. Nf3 {[%emt 0:13:52]} Qd8 {[%emt 0:03:50]} 20. Rad1 {[%emt 0:03:07]} (20. dxe5 Nxe5 21. Nxe5 dxe5 $15) 20... h5 {[%emt 0:06:43] Prevents c5.} (20... Qa5 $11) 21. c5 $1 $16 {[%emt 0:03:16]} (21. dxe5 Nxe5 22. Qe2 hxg4 23. hxg4 Qa5 $15) 21... dxc5 {[%emt 0:06:35]} 22. dxe5 {[%emt 0:00:49] White is more active.} b5 {[%emt 0:00:11] Prevents Bc4.} 23. Qd2 {[%emt 0:01:24]} (23. Qc1 $16) 23... c4 {[%emt 0:03:35]} ({Black should play} 23... Qa5 $14) 24. Bb1 {[%emt 0:05:45]} Ndc5 {[%emt 0:01:28]} 25. Qe3 {[%emt 0:00:21]} Qa5 {[%emt 0:01:40]} (25... Qb6 $16) 26. Nd4 $18 {[%emt 0:01:43]} Na4 {[%emt 0:00:47]} 27. Rc1 {[%emt 0:08:01]} ({Don't take} 27. Nxc6 $6 Qxc3 28. f4 h4 $16) 27... Qb6 {[%emt 0:05:43] [#]} 28. f4 $1 {[%emt 0:00:39][%cal Bf2f4,Bf4f5][%mdl 32]} Nxc3 {[%emt 0:04:02]} (28... Rad8 {was worth a try.}) 29. Nxe6 {[%emt 0:01:22]} Nxb1 $2 {[%emt 0:00:10] [#]} (29... Nxa2 30. Rcd1 fxe6) 30. Nc5 $1 {[%emt 0:00:59]} Nd2 {[%emt 0:00:41]} 31. f5 {[%emt 0:02:28]} Bh7 {[%emt 0:00:15]} 32. gxh5 {[%emt 0:01:45][%cal Bg4h5,Bh5h6,Bh6g7][%mdl 32] Bf2 is the strong threat.} ({Weaker is} 32. Qxd2 Qxc5 33. gxh5 Rad8 $14) 32... c3 {[%emt 0:00:23]} (32... Rad8 {was necessary.} 33. Bh4 Rxe5) 33. h6 {[%emt 0:03:38][%cal Oe3g5] Threatens to win with Qg5!} ({Much less strong is} 33. Qxc3 Nc4 $18) 33... Qd8 {[%emt 0:01:44] Inhibits Qg5.} (33... Nxe4 {might work better.} 34. Nxe4 Qxe3 35. Rxe3 Bxf5) 34. Qxc3 {[%emt 0:05:04] White is clearly winning.} Qg5 {[%emt 0:00:05]} 35. hxg7 {[%emt 0:00:57]} Rad8 {[%emt 0:00:08]} 36. Rcd1 {[%emt 0:01:48]} a5 {[%emt 0:02:01]} 37. h4 {[%emt 0:00:53]} Qh6 {[%emt 0:00:19]} 38. Qc1 {[%emt 0:02:27]} Kxg7 {[%emt 0:03:04]} 39. e6 {[%emt 0:01:53]} fxe6 {[%emt 0:00:40]} 40. Qc3+ {[%emt 0:01:01]} Kg8 {[%emt 0:01:27]} 41. Nxe6 {[%emt 0:02:23] Black must now prevent Bf4.} b4 {[%emt 0:26:58]} 42. Qxc6 {[%emt 0:01:58]} Qh5 {[%emt 0:02:41]} 43. Nxd8 {[%emt 0:03:37] Weighted Error Value: White=0.10 (very precise) /Black=0.41} 1-0

[Event "Bangabandhu Premier Div League 2022"]
[Site "Dhaka"]
[Date "2022.12.04"]
[Round "5.7"]
[White "Abdul, Momin"]
[Black "Rahman, Syed Mahfuzur"]
[Result "0-1"]
[ECO "B33"]
[WhiteElo "1900"]
[BlackElo "2130"]
[Annotator "TA"]
[PlyCount "75"]
[EventDate "2022.12.01"]
[EventCountry "BAN"]
[SourceTitle "playchess.com"]
[Source "ChessBase"]
[SourceQuality "1"]
[TimeControl "40/5400+30:1800+30"]

{[%evp 25,75,24,33,28,51,-22,0,-41,-45,-46,-13,-71,-64,-185,-72,-180,-129,-276,-271,-237,-217,-406,-381,-340,-339,-328,-320,-455,-432,-399,-401,-482,-203,-204,-201,-201,-176,-325,-319,-347,-340,-336,-333,-316,-304,-361,-317,-366,-334,-447,-447,-482]} 1. e4 {[%emt 0:17:41]} c5 {[%emt 1:31:00]} 2. Nf3 {[%emt 1:13:49]} Nc6 {[%emt 0:00:00]} 3. d4 {[%emt 0:00:00]} cxd4 {[%emt 0:00:00]} 4. Nxd4 {[%emt 0:00:00]} Nf6 {[%emt 0:00:00]} 5. Nc3 {[%emt 0:01:30]} e5 {[%emt 0:00:00]} 6. Ndb5 {[%emt 0:00:00]} d6 {[%emt 0:02:30]} 7. Bg5 {[%emt 0:00:00]} a6 {[%emt 0:00:30]} 8. Na3 {[%emt 0:00:00]} b5 {[%emt 0:00:00]} 9. Nd5 {[%emt 0:00:00]} Be7 {[%emt 0:01:00]} 10. Nxe7 {[%emt 0:00:00]} Nxe7 {[%emt 0:00:00]} 11. Bxf6 {[%emt 0:00:00]} gxf6 {[%emt 0:00:00]} 12. c3 {[%emt 0:03:30]} f5 {[%emt 0:01:30]} 13. exf5 {[%emt 0:00:00]} Bxf5 {[%emt 0:00:00]} 14. Nc2 {[%emt 0:01:00] B33: Sicilian: Pelikan and Sveshnikov Variations.} Qb6 {[%emt 0:01:00] [#]} 15. Qf3 $146 {[%emt 0:00:30]} (15. Ne3 $14 Qc6 16. Bd3 Bxd3 17. Qxd3) ({Predecessor:} 15. Ne3 Be4 16. Bd3 Bg6 {½-½ (16) Barcsi,J (2126)-Toth,D (2131) Hungary 2003}) 15... d5 $11 {[%emt 0:00:30][%cal Bd6d5,Bd5d4][%mdl 32]} 16. Ne3 {[%emt 0:00:30] The position is equal.} Be4 {[%emt 0:00:30]} 17. Qh5 {[%emt 0:00:30]} Qe6 {[%emt 0:00:00] Black wants to play ...0-0-0.} (17... Ng6 $5 {[%cal Rd5d4]} 18. O-O-O O-O-O $17) 18. a4 {[%emt 0:00:30]} (18. Be2 $11) 18... d4 $17 {[%emt 0:01:00]} 19. Nd1 {[%emt 0:00:30] Black keeps a firm grip on the game.} (19. Qh4 $15 f5 20. f3) 19... b4 {[%emt 0:00:30]} (19... Rd8 $19 {is more deadly. And now ...d3 would win.} 20. Qe2 (20. axb5 $2 {loses.} d3 $19) 20... Bg6) 20. cxb4 {[%emt 0:00:30]} (20. Qe2 $17 Bd5 21. cxd4 exd4 22. f3) 20... Qd6 {[%emt 0:00:30]} (20... Rg8 $19 {Threatens to win with ...Nd5.} 21. b5 d3) 21. f3 {[%emt 0:00:30]} (21. Qe2 $17 Qxb4+ 22. Qd2 Qxd2+ 23. Kxd2) 21... Qxb4+ $19 {[%emt 0:00:00]} 22. Kf2 {[%emt 0:00:30][%cal Oh5e5]} Qd2+ {[%emt 0:00:00]} 23. Be2 $2 {[%emt 0:00:30]} (23. Kg1 Bf5 24. Qh4) 23... Bf5 {[%emt 0:00:00]} 24. g4 d3 {[%emt 0:02:00]} 25. Re1 {[%emt 0:00:00]} dxe2 {[%emt 0:00:00] Really sharp!} 26. Rxe2 {[%emt 0:01:30]} (26. Ne3 {was forced.} Be6 27. Qxe5) 26... Qd4+ {[%emt 0:01:00]} 27. Ne3 {[%emt 0:00:30]} Bd3 {[%emt 0:00:30]} 28. Rd2 {[%emt 0:00:30]} Rd8 {[%emt 0:00:30]} ({Weaker is} 28... Nd5 29. Rxd3 Qxb2+ 30. Kg3 $11) (28... Rb8 $142 29. Rxd3 Qxd3 30. Qxe5 Qd2+ 31. Kg3 Qxb2 32. Qxb2 Rxb2) 29. Rad1 {[%emt 0:00:30]} e4 {[%emt 0:00:30]} 30. fxe4 {[%emt 0:00:00]} Qxe4 {[%emt 0:00:30] [#] aiming for ...Qf4+.} 31. Qh6 {[%emt 0:01:00] Inhibits Qf4+.} (31. Qc5 $142) 31... Rg8 {[%emt 0:00:30][%cal Bh8g8,Bg8g6,Bg6d6,Bd6d7,Bd7d4][%mdl 32] Strongly threatening ...Rg6.} ({Don't go for} 31... Rd4 $2 32. Ng2 $19) 32. Qh3 {[%emt 0:00:00]} Rg6 {Hoping for ...Rf6+.} 33. Qf3 {[%emt 0:01:00] Prevents Rf6.} Qxf3+ {[%emt 0:00:00]} 34. Kxf3 {[%emt 0:00:00]} Rgd6 {[%emt 0:01:30][%cal Od3e4] [#] ...Be4+! is the strong threat.} 35. Kf2 {[%emt 0:01:00]} R6d7 {[%emt 0:00:30]} 36. Re1 {[%emt 0:00:00]} Kf8 {[%emt 0:00:30]} 37. h4 {[%emt 0:00:00]} Rd4 38. Red1 {[%emt 0:01:30] Weighted Error Value: White=0.61/Black=0.38} 0-1